bitfinex/quotes_ETHUSD_20250404
["timestamp","ask_amount","ask_price","bid_price","bid_amount"]
[1743783832534,5.60067,1785.5,1785.4,0.7702]
[1743783832832,5.60161,1785.2,1785.1,1e-05]
[1743783833930,6.44002811,1786.1,1785.1,1e-05]
[1743783834116,5.60077,1785.5,1785.2,0.7554]
[1743783834310,5.60116,1785.4,1785.2,0.7554]
[1743783834917,11.20233,1785.4,1785.2,0.7554]
[1743783835108,12.12471,1785.9,1785.2,6.35683]
[1743783835300,12.12471,1785.9,1785.2,0.7554]
[1743783835301,5.6008,1785.5,1785.2,0.7554]
[1743783835502,5.6005,1785.6,1785.2,13.154313]
[1743783835701,5.60007,1785.7,1785.3,5.6012]
[1743783835996,5.60048,1785.6,1785.2,7.552903]
[1743783836200,5.60007,1785.7,1785.3,5.65703843]
[1743783836401,12.12445,1785.9,1785.4,5.60083]
[1743783836601,5.59992,1785.8,1785.4,6.16651365]
[1743783836802,5.60016,1785.7,1785.4,0.56568365]
[1743783837138,5.60048,1785.6,1785.2,11.95846]
[1743783837505,5.60067,1785.5,1785.2,6.35688]
[1743783837906,5.60007,1785.7,1785.3,5.60127]
[1743783838536,11.20033,1785.7,1785.3,5.60115]
[1743783838739,5.60038,1785.6,1785.3,5.60115]
[1743783838947,5.60038,1785.6,1785.3,1.195811]
[1743783839154,5.60129,1785.3,1785.2,0.7554]
[1743783839448,5.60129,1785.3,1785.1,1e-05]
[1743783839449,5.60161,1785.2,1785.1,1e-05]
[1743783840639,5.60129,1785.3,1785.1,1e-05]
[1743783840819,5.60161,1785.2,1785.1,1e-05]
[1743783842547,12.12401,1785.4,1785.1,1e-05]
[1743783842759,5.60101,1785.4,1785.1,0.560205]
[1743783842924,5.60129,1785.3,1785.2,0.8186]
[1743783843120,5.60161,1785.2,1785.1,1e-05]
[1743783846147,15.12361,1785.2,1785.1,1e-05]
[1743783846321,17.1961,1785.2,1785.1,1e-05]
[1743783847950,5.60129,1785.3,1785.1,1e-05]
[1743783848140,5.60161,1785.2,1785.1,1e-05]
[1743783848656,8.60161,1785.2,1785.1,1e-05]
[1743783853433,5.60286,1784.8,1784.7,0.005]
[1743783853676,15.684146,1784.8,1784.7,0.005]
[1743783854668,15.684146,1784.8,1784.7,1e-05]
[1743783855268,16.51592222,1784.8,1784.7,1e-05]
[1743783855425,5.6062,1783.8,1783.4,5.61223]
[1743783855632,5.60691,1783.6,1783.4,1.126977]
[1743783855859,5.60695,1783.5,1783.4,0.005]
[1743783856168,5.60523,1784.1,1783.7,11.21238]
[1743783856469,5.60523,1784.1,1783.7,11.21234]
[1743783856669,5.60523,1784.1,1783.7,11.21235]
[1743783856869,11.20964,1784.2,1783.7,11.21235]
[1743783857081,12.12515,1784.4,1783.9,5.60564]
[1743783857226,5.60433,1784.4,1783.7,5.60607]
[1743783857429,11.20925,1784.3,1783.9,5.60552]
[1743783857621,5.60475,1784.2,1783.8,5.60599]
[1743783857825,5.60475,1784.2,1783.8,11.21181]
[1743783858127,5.60475,1784.2,1783.6,0.005]
[1743783858128,11.20724,1784.6,1784.0,5.60538]
[1743783858473,5.60437,1784.4,1784.2,0.7661]
[1743783858678,5.60443,1784.3,1784.2,0.7661]
[1743783858882,5.60437,1784.4,1784.2,0.7661]
[1743783859030,5.60382,1784.5,1784.2,0.7661]
[1743783859225,5.6035,1784.6,1784.2,6.37072]
[1743783859545,5.60351,1784.6,1784.2,13.172904]
[1743783859746,5.60351,1784.6,1784.3,5.60438]
[1743783859930,5.60359,1784.6,1784.3,5.60438]
[1743783860127,6.521,1784.8,1784.2,1.963674]
[1743783860352,5.60395,1784.5,1784.2,0.7661]
[1743783860567,5.60399,1784.5,1784.2,0.7661]
[1743783861168,5.60443,1784.3,1784.2,0.7661]
[1743783861343,5.60443,1784.3,1783.9,0.8166]
[1743783861550,5.60478,1784.2,1783.9,6.42213]
[1743783861969,5.60509,1784.1,1783.9,0.8166]
[1743783862650,5.60571,1783.9,1783.7,0.7583]
[1743783862837,12.331328,1784.1,1783.7,6.3646]
[1743783863073,5.60541,1784.0,1783.7,6.3646]
[1743783863251,5.60509,1784.1,1783.7,6.36449]
[1743783863584,11.2111,1784.0,1783.7,0.7583]
[1743783863750,5.60545,1784.0,1783.7,0.7583]
[1743783864086,11.21032,1784.1,1783.7,11.97077]
[1743783864374,5.60571,1783.9,1783.7,0.7583]
[1743783864582,5.60551,1784.0,1783.7,6.3646]
[1743783864877,5.60551,1784.0,1783.7,0.7583]
[1743783865033,11.21111,1784.0,1783.7,0.7583]
[1743783865231,5.60551,1784.0,1783.7,6.36457]
[1743783865429,11.21037,1784.1,1783.7,6.36448]
[1743783865635,5.60449,1784.3,1783.7,7.001487]
[1743783865959,5.60335,1784.7,1784.4,5.60408]
[1743783866163,5.60288,1784.8,1784.5,5.60368]
[1743783866361,5.60267,1784.9,1784.5,11.20735]
[1743783866674,12.12327,1785.0,1784.6,5.60334]
[1743783866873,6.521,1785.0,1784.4,6.39407]
[1743783867077,11.20419,1785.1,1784.8,0.7851]
[1743783867232,5.60166,1785.2,1784.8,6.38779]
[1743783867438,30.81033,1785.3,1784.9,5.60229]
[1743783867639,25.209,1785.3,1784.9,5.60229]
[1743783867985,5.60038,1785.6,1785.2,5.60159]
[1743783868183,5.60005,1785.7,1785.2,5.60141]
[1743783868482,5.60067,1785.5,1785.1,0.7851]
[1743783868651,5.60109,1785.4,1785.1,0.7851]
[1743783868833,5.60112,1785.4,1785.1,0.7851]
[1743783869043,5.60067,1785.5,1785.1,6.387]
[1743783869245,5.60067,1785.5,1785.1,6.4428961]
[1743783869454,11.20158,1785.5,1785.1,6.38685]
[1743783869658,5.59976,1785.8,1785.1,1.198907]
[1743783869998,0.05,1785.9,1785.7,5.60001]
[1743783870147,0.05,1785.9,1785.6,6.39825]
[1743783870480,0.05,1785.9,1785.8,0.7753]
[1743783871689,0.05,1785.9,1785.8,6.37503]
[1743783872050,0.05,1785.9,1785.8,0.7753]
[1743783872879,0.05,1785.9,1785.8,7.012548]
[1743783873387,0.05,1785.9,1785.8,1.46880585]
[1743783873598,0.05,1785.9,1785.8,0.7753]
[1743783875149,5.64941,1785.9,1785.8,0.7753]
[1743783875447,5.60035,1785.6,1785.5,0.7875]
[1743783876283,11.20096,1785.6,1785.3,0.832]
[1743783876671,5.60035,1785.6,1785.3,0.832]
[1743783877187,5.60028,1785.7,1785.3,5.60117]
[1743783877350,5.59978,1785.8,1785.4,5.60087]
[1743783877554,11.1997,1785.8,1785.5,0.7681]
[1743783877863,5.64944,1785.9,1785.5,6.36874]
[1743783878063,5.59986,1785.8,1785.5,0.7681]
[1743783878665,5.59986,1785.8,1785.5,7.005632]
[1743783878887,11.24903,1785.9,1785.5,7.005612]
[1743783879190,5.64942,1785.9,1785.5,7.005632]
[1743783879366,5.59974,1785.8,1785.5,1.404992]
[1743783879567,5.64942,1785.9,1785.5,1.404992]
[1743783879770,0.05,1785.9,1785.6,5.60023]
[1743783879964,0.05,1785.9,1785.5,12.606042]
[1743783880191,0.05,1785.9,1785.7,5.59983]
[1743783880356,0.05,1785.9,1785.8,6.46832432]
[1743783880687,0.05,1785.9,1785.8,6.46831962]
[1743783880874,0.05,1785.9,1785.8,6.41233]
[1743783881779,0.05,1785.9,1785.8,6.46831785]
[1743783881987,0.05,1785.9,1785.8,7.67513263]
[1743783882291,5.59726,1786.6,1786.2,0.7992]
[1743783882451,5.59816,1786.3,1786.2,0.7992]
[1743783882651,5.59738,1786.6,1786.2,0.7992]
[1743783882855,11.19484,1786.6,1786.2,0.7992]
[1743783883185,5.59722,1786.6,1786.2,0.7992]
[1743783883487,5.59765,1786.5,1786.2,1.438981]
[1743783883687,5.59765,1786.5,1786.2,0.7992]
[1743783883867,5.59786,1786.4,1786.2,0.7992]
[1743783884391,5.59726,1786.6,1786.2,0.7992]
[1743783884690,5.59695,1786.7,1786.3,5.65409921]
[1743783884861,11.19344,1786.8,1786.4,5.59767]
[1743783885068,0.05,1786.9,1786.4,1.11958]
[1743783885261,5.59705,1786.7,1786.2,6.39752]
[1743783885466,11.19427,1786.7,1786.2,11.99588]
[1743783885785,5.59724,1786.6,1786.2,6.39754]
[1743783885986,5.59804,1786.4,1786.2,0.7992]
[1743783886177,5.59816,1786.3,1786.2,0.7992]
[1743783886361,5.59852,1786.2,1785.9,0.7653]
[1743783886562,5.59757,1786.5,1785.7,0.7653]
[1743783886563,5.59942,1785.9,1785.7,0.7653]
[1743783887486,5.59973,1785.8,1785.5,0.7867]
[1743783888077,5.60006,1785.7,1785.5,0.7867]
[1743783888388,5.60035,1785.6,1785.5,0.7867]
[1743783888590,5.6008,1785.5,1785.3,0.7705]
[1743783888789,5.60098,1785.4,1785.3,0.7705]
[1743783888970,5.6008,1785.5,1785.3,0.7705]
[1743783889369,5.59952,1785.9,1785.5,5.60056]
[1743783889559,5.59973,1785.8,1785.4,5.60076]
[1743783889764,5.59952,1785.9,1785.5,6.160566]
[1743783889972,11.19848,1786.0,1785.6,5.65612121]
[1743783890181,5.59914,1786.0,1785.7,0.7851]
[1743783890386,5.59963,1785.9,1785.7,0.7851]
[1743783890591,5.59973,1785.8,1785.7,0.7851]
[1743783890779,5.59973,1785.8,1785.4,0.8077]
[1743783890977,5.60022,1785.7,1785.4,1.50458772]
[1743783891173,11.19974,1785.8,1785.4,1.50458772]
[1743783891492,5.59939,1786.0,1785.5,5.6004]
[1743783891696,5.59939,1786.0,1785.6,5.60025]
[1743783891898,5.59848,1786.2,1785.8,6.41892]
[1743783892099,5.59848,1786.2,1785.8,7.06641187]
[1743783892259,5.59785,1786.4,1785.8,1.46669187]
[1743783892462,11.19803,1786.1,1785.8,0.8192]
[1743783892661,5.59897,1786.1,1785.8,0.8192]
[1743783892859,5.59853,1786.2,1785.8,0.8192]
[1743783893101,5.59895,1786.1,1785.8,0.8192]
[1743783893601,5.59895,1786.1,1785.6,6.36742]
[1743783893800,11.19724,1786.2,1785.8,0.7672]
[1743783893999,5.59889,1786.1,1785.8,0.7672]
[1743783894211,5.59883,1786.1,1785.8,0.7672]
[1743783894515,11.19781,1786.1,1785.8,0.7672]
[1743783894671,5.59941,1785.9,1785.8,0.7672]
[1743783894867,5.59928,1786.0,1785.5,6.37904]
[1743783895072,5.59879,1786.1,1785.6,6.238144]
[1743783895273,5.59922,1786.0,1785.6,6.238144]
[1743783895578,11.19857,1786.0,1785.6,0.637904]
[1743783895775,5.59922,1786.0,1785.6,0.637904]
[1743783895987,5.59922,1786.0,1785.6,6.238104]
[1743783896704,5.59885,1786.1,1785.7,6.2237304]
[1743783896893,5.59885,1786.1,1785.7,11.8236604]
[1743783897094,5.59885,1786.1,1785.7,11.8236804]
[1743783897399,5.59891,1786.1,1785.7,6.2237104]
[1743783897704,5.59911,1786.0,1785.7,0.6238104]
[1743783897901,5.59891,1786.1,1785.7,6.2237504]
[1743783898112,5.59891,1786.1,1785.7,11.8236704]
[1743783898411,5.59851,1786.2,1785.8,5.5997]
[1743783898574,5.59923,1786.0,1785.7,0.6238104]
[1743783898975,5.59889,1786.1,1785.7,6.2238304]
[1743783899183,5.59889,1786.1,1785.7,0.6238104]
[1743783899373,5.59851,1786.2,1785.7,6.2236704]
[1743783899578,5.59827,1786.3,1785.9,0.8333]
[1743783900025,5.59858,1786.2,1785.9,0.8333]
[1743783900190,5.59816,1786.3,1785.9,6.4326]
[1743783900392,5.59859,1786.2,1785.9,0.8333]
[1743783900779,5.59786,1786.4,1785.9,0.8333]
[1743783900980,5.59725,1786.6,1786.1,5.59857]
[1743783901287,0.05,1786.9,1786.6,5.59712]
[1743783901519,0.05,1786.9,1786.7,5.59675]
[1743783901683,0.05,1786.9,1786.8,0.7819]
[1743783902581,5.64638,1786.9,1786.6,0.7742]
[1743783902811,5.64638,1786.9,1786.4,0.7649]
[1743783902812,0.05,1786.9,1786.4,0.7649]
[1743783903131,5.59807,1786.4,1786.0,6.3639]
[1743783903428,9.82270689,1786.8,1786.0,0.7649]
[1743783903429,5.59769,1786.5,1786.0,0.7649]
[1743783903598,5.59816,1786.3,1786.0,0.7649]
[1743783903986,11.19619,1786.4,1786.0,6.36398]
[1743783904235,0.55,1786.6,1786.0,0.7649]
[1743783904526,11.19851,1786.0,1785.8,0.7711]
[1743783904680,5.59922,1786.0,1785.8,0.7711]
[1743783904888,5.59942,1785.9,1785.6,0.7771]
[1743783905190,0.55,1786.2,1785.6,0.7771]
[1743783905397,5.59944,1785.9,1785.6,6.37743]
[1743783905603,5.59944,1785.9,1785.6,7.575235]
[1743783905845,5.59903,1786.1,1785.7,5.59993]
[1743783905996,5.59826,1786.3,1785.9,6.3667]
[1743783906326,12.10188,1786.4,1785.9,6.42268685]
[1743783906479,5.59818,1786.3,1786.0,0.64226869]
[1743783906679,5.59857,1786.2,1786.0,0.64226869]
[1743783907029,5.5986,1786.2,1785.9,0.7674]
[1743783907410,12.10189,1786.4,1785.9,0.7674]
[1743783907611,5.59789,1786.4,1786.1,5.59878]
[1743783907832,5.59818,1786.3,1785.9,6.36671]
[1743783908132,5.59789,1786.4,1786.0,6.235571]
[1743783908286,5.59822,1786.3,1786.0,0.636671]
[1743783908489,5.59864,1786.2,1786.0,0.636671]
[1743783908720,5.59822,1786.3,1785.9,6.36665]
[1743783908927,5.59876,1786.2,1785.9,0.7674]
[1743783909228,5.59923,1786.0,1785.6,0.8027]
[1743783909435,9.82437689,1786.2,1785.6,0.8027]
[1743783909583,5.5996,1785.9,1785.6,0.8027]
[1743783909778,5.59979,1785.8,1785.6,2.003083]
[1743783909978,11.19904,1785.9,1785.6,0.8027]
[1743783910192,5.59976,1785.8,1785.6,0.8027]
[1743783910413,11.19915,1785.9,1785.6,0.8027]
[1743783910617,5.59912,1786.0,1785.6,6.40294]
[1743783910788,5.59928,1786.0,1785.6,7.6089671]
[1743783910988,12.10239,1786.3,1785.6,2.0086571]
[1743783911215,5.59808,1786.4,1786.0,5.59893]
[1743783911413,5.59792,1786.4,1786.1,0.8026]
[1743783911622,5.5967,1786.8,1786.4,5.59778]
[1743783911817,1.08258369,1786.9,1786.5,5.59743]
[1743783911818,11.24303,1786.9,1786.5,5.59743]
[1743783912125,5.64647,1786.9,1786.6,0.7536]
[1743783912329,5.64647,1786.9,1786.6,6.35082]
[1743783912511,0.05,1786.9,1786.6,6.35065]
[1743783912713,0.05,1786.9,1786.6,0.7536]
[1743783913111,5.64642,1786.9,1786.6,0.7536]
[1743783913315,0.05,1786.9,1786.6,0.80956778]
[1743783913632,0.05,1786.9,1786.6,12.64445056]
[1743783913837,0.05,1786.9,1786.6,12.58839278]
[1743783914039,0.05,1786.9,1786.6,1.39429278]
[1743783914331,0.05,1786.9,1786.8,5.59659]
[1743783914941,0.05,1786.9,1786.8,6.47915079]
[1743783915530,0.05,1786.9,1786.8,0.8266]
[1743783916239,0.05,1786.9,1786.6,5.597]
[1743783916454,0.05,1786.9,1786.7,5.59678]
[1743783916613,5.64639,1786.9,1786.5,6.3953]
[1743783916810,5.59677,1786.8,1786.5,0.7978]
[1743783917005,0.05,1786.9,1786.6,5.59707]
[1743783917332,0.05,1786.9,1786.5,6.3953]
[1743783917333,0.05,1786.9,1786.5,0.7978]
[1743783917754,0.05,1786.9,1786.6,5.59703]
[1743783918034,5.59682,1786.8,1786.5,0.7978]
[1743783918233,0.05,1786.9,1786.5,0.7978]
[1743783918537,0.05,1786.9,1786.6,5.59713]
[1743783918741,0.05,1786.9,1786.7,5.59687]
[1743783918942,0.05,1786.9,1786.6,1.19922]
[1743783919142,5.59674,1786.8,1786.5,0.7978]
[1743783919344,5.59713,1786.7,1786.3,6.36695]
[1743783919548,5.59713,1786.7,1786.3,6.36683]
[1743783919847,5.59831,1786.3,1785.9,5.59928]
[1743783920145,6.5,1786.4,1786.2,5.59833]
[1743783920310,5.59747,1786.6,1786.3,0.7863]
[1743783920647,7.049,1786.8,1785.6,5.60019]
[1743783920648,5.59845,1786.3,1785.6,5.60019]
[1743783920944,0.55,1786.4,1785.8,0.7863]
[1743783921108,0.55,1786.4,1785.9,0.05598829]
[1743783921311,5.5977,1786.5,1786.1,5.59877]
[1743783921518,5.59727,1786.6,1786.1,1.17576609]
[1743783921810,0.05,1786.9,1786.3,0.7886]
[1743783922129,5.59682,1786.8,1786.3,0.7886]
[1743783922329,11.19363,1786.8,1786.4,5.59767]
[1743783922640,5.59681,1786.8,1786.4,5.59758]
[1743783922843,6.1963,1786.9,1786.5,5.59735]
[1743783922844,11.79279,1786.9,1786.5,5.59735]
[1743783923063,0.05,1786.9,1786.7,5.59675]
[1743783923205,0.05,1786.9,1786.8,0.767]
[1743783923409,5.59674,1786.8,1786.6,0.559735]
[1743783923642,5.59674,1786.8,1786.4,6.38584]
[1743783923844,0.05,1786.9,1786.5,0.69455323]
[1743783924144,0.05,1786.9,1786.6,5.59722]
[1743783924458,0.55,1786.3,1785.0,10.12460293]
[1743783924617,5.60006,1785.7,1785.3,5.60099]
[1743783924961,5.60012,1785.7,1785.3,5.60118]
[1743783925272,11.20036,1785.7,1785.4,0.560118]
[1743783925432,5.59973,1785.8,1785.4,0.560118]
[1743783925743,5.6003,1785.7,1785.4,0.560118]
[1743783925944,5.60038,1785.6,1785.2,5.60147]
[1743783926140,5.60038,1785.6,1785.2,11.20297]
[1743783926342,5.60036,1785.6,1785.2,5.60147]
[1743783926561,5.60081,1785.5,1785.1,6.4329]
[1743783926717,11.20093,1785.6,1785.2,6.24477]
[1743783926921,0.55,1785.9,1785.4,5.60068]
[1743783927150,6.498,1786.2,1785.2,0.64329]
[1743783927151,12.09772,1786.2,1785.7,5.59984]
[1743783927351,5.59881,1786.1,1785.7,5.59984]
[1743783927549,5.5991,1786.0,1785.7,5.59984]
[1743783927755,6.499,1786.2,1785.9,5.5994]
[1743783927968,5.5989,1786.1,1785.7,6.719928]
[1743783928263,12.09749,1786.2,1785.8,5.59972]
[1743783928422,5.59882,1786.1,1785.7,6.720028]
[1743783928617,6.499,1786.2,1785.5,6.35984]
[1743783928825,5.60005,1785.7,1785.3,0.8149]
[1743783929028,5.59973,1785.8,1785.4,5.60088]
[1743783929232,0.55,1786.0,1785.4,5.60088]
[1743783929467,5.59946,1785.9,1785.4,5.65687326]
[1743783929656,5.59946,1785.9,1785.5,5.60052]
[1743783929840,5.59865,1786.2,1785.7,5.59974]
[1743783930042,5.59882,1786.1,1785.7,6.35274]
[1743783930375,5.59935,1786.0,1785.7,0.753]
[1743783930532,5.60028,1785.7,1785.4,0.758]
[1743783930729,5.59982,1785.8,1785.1,6.35989]
[1743783930963,6.14964,1785.9,1785.2,6.237459]
[1743783930964,5.60048,1785.6,1785.2,6.237459]
[1743783931339,5.60037,1785.6,1785.3,5.60112]
[1743783931545,11.20051,1785.7,1785.3,5.60112]
[1743783931865,5.59977,1785.8,1785.4,5.60098]
[1743783932046,0.25728817,1785.7,1785.4,5.60098]
[1743783932364,5.60038,1785.6,1785.2,6.237559]
[1743783932547,5.60038,1785.6,1785.2,6.237459]
[1743783932746,5.85848656,1785.5,1785.2,0.635989]
[1743783933049,0.25769656,1785.5,1785.2,0.635989]
[1743783933236,5.85845656,1785.5,1785.1,6.35979]
[1743783933546,5.60102,1785.4,1785.0,5.60208]
[1743783934069,0.25658067,1785.3,1785.0,5.60211]
[1743783934267,5.60112,1785.4,1785.0,5.60206]
[1743783934431,0.25622992,1785.3,1784.7,0.7737]
[1743783934763,5.60215,1785.1,1784.7,0.7737]
[1743783934980,12.09964,1785.2,1784.8,5.60285]
[1743783935135,0.254764,1785.0,1784.7,0.7737]
[1743783935334,5.60205,1785.1,1784.7,6.37677]
[1743783935572,0.25425331,1784.9,1784.7,6.37677]
[1743783935767,5.60204,1785.1,1784.7,6.37671]
[1743783935934,0.25426269,1784.8,1784.7,7.014381]
[1743783936134,9.216202,1785.4,1784.7,7.014381]
[1743783936135,12.64972,1785.5,1785.1,5.60182]
[1743783936366,18.25058,1785.5,1785.1,5.60182]
[1743783936575,5.60112,1785.4,1785.0,5.60209]
[1743783936773,7.049,1785.5,1784.8,5.60273]
[1743783936962,6.30601,1785.4,1784.7,7.014501]
[1743783937283,5.60241,1785.0,1784.5,0.8247]
[1743783937441,5.60241,1785.0,1784.6,5.60333]
[1743783937642,0.55,1785.1,1784.8,5.60276]
[1743783937873,5.60134,1785.3,1784.9,5.60239]
[1743783937874,6.15134,1785.3,1784.9,5.60239]
[1743783938077,6.15134,1785.3,1784.8,5.60274]
[1743783938257,11.20362,1785.2,1784.8,6.723301]
[1743783938451,5.60171,1785.2,1784.8,5.60271]
[1743783938648,5.60176,1785.2,1784.8,5.60271]
[1743783938849,5.60199,1785.1,1784.8,5.60271]
[1743783939150,5.60176,1785.2,1784.8,5.60282]
[1743783939380,15.09971,1785.5,1784.7,5.60318]
[1743783939582,6.14914,1786.0,1785.1,6.40512]
[1743783939777,11.74848,1786.0,1785.6,5.60024]
[1743783939980,6.14914,1786.0,1785.5,5.60061]
[1743783940146,5.59979,1785.8,1785.5,5.60061]
[1743783940480,0.23160436,1785.7,1785.6,5.60015]
[1743783940693,5.59952,1785.9,1785.5,5.60052]
[1743783940989,0.23198456,1785.8,1785.5,11.20104]
[1743783941195,0.23198456,1785.8,1785.6,5.60028]
[1743783941393,6.14913,1786.0,1785.6,5.60028]
[1743783941547,0.23340768,1785.7,1785.6,5.60028]
[1743783941750,6.14913,1786.0,1785.6,5.60028]
[1743783942043,1.814713,1786.0,1785.5,0.7918]
[1743783942352,0.23403806,1785.9,1785.6,11.20045]
[1743783942546,0.23403806,1785.9,1785.8,5.59973]
[1743783942947,30.79292,1786.4,1786.0,5.59897]
[1743783943479,5.59822,1786.3,1786.0,5.59897]
[1743783943647,5.59821,1786.3,1785.9,6.40099]
[1743783943847,30.79286,1786.4,1786.0,5.59885]
[1743783944051,11.19657,1786.3,1785.9,7.041109]
[1743783944263,5.59819,1786.3,1785.9,12.640349]
[1743783944462,34.97304458,1786.4,1785.7,5.60001]
[1743783944675,5.60016,1785.7,1785.3,0.8159]
[1743783944862,5.60039,1785.6,1785.3,5.60115]
[1743783945061,5.60039,1785.6,1785.2,11.20306]
[1743783945266,4.18003458,1785.8,1785.1,0.8159]
[1743783945478,5.60115,1785.4,1785.0,5.60213]
[1743783945680,5.60115,1785.4,1785.1,5.60192]
[1743783945988,5.6011,1785.4,1785.0,5.6021]
[1743783946285,6.15093,1785.5,1784.9,0.8169]
[1743783946473,6.15092,1785.5,1785.1,5.60173]
[1743783946677,0.55,1785.5,1785.1,5.60173]
[1743783946881,0.55,1785.5,1785.2,11.20294]
[1743783947387,0.55,1785.5,1785.2,11.2029]
[1743783947799,6.15009,1785.7,1785.3,5.60109]
[1743783947986,0.55,1785.7,1785.1,5.60191]
[1743783948152,5.60099,1785.4,1785.0,5.6021]
[1743783948355,11.20216,1785.4,1785.0,6.804252]
[1743783948555,5.60039,1785.6,1784.9,12.02185]
[1743783948770,5.60162,1785.2,1784.9,5.60243]
[1743783948988,5.60131,1785.3,1784.9,11.20479]
[1743783949178,5.60131,1785.3,1785.0,5.60222]
[1743783949487,6.496,1785.4,1785.0,5.60206]
[1743783949686,6.496,1785.4,1785.0,12.324579]
[1743783949887,17.69835,1785.4,1785.0,1.120459]
[1743783950094,12.09715,1785.4,1785.0,6.722689]
[1743783950262,6.496,1785.4,1785.1,5.60188]
[1743783950462,12.09715,1785.4,1785.0,6.3797]
[1743783950659,0.55,1786.0,1785.0,0.7776]
[1743783950858,5.60049,1785.6,1785.2,5.60155]
[1743783951063,5.60049,1785.6,1785.2,11.20303]
[1743783951266,11.20029,1785.7,1785.3,5.60119]
[1743783951686,5.60009,1785.7,1785.2,6.721783]
[1743783951885,5.60009,1785.7,1785.3,11.20235]
[1743783952088,5.60009,1785.7,1785.3,11.20229]
[1743783952301,5.60037,1785.6,1785.3,5.60113]
[1743783952683,11.20032,1785.7,1785.3,5.60113]
[1743783953000,5.60036,1785.6,1785.3,5.60113]
[1743783953203,5.60037,1785.6,1785.3,5.60113]
[1743783953502,5.60009,1785.7,1785.3,11.20231]
[1743783953710,5.60037,1785.6,1785.3,6.16421163]
[1743783953877,5.6008,1785.5,1785.2,5.60157]
[1743783954202,5.59989,1785.8,1785.4,5.60078]
[1743783954408,11.1999,1785.8,1785.4,6.35578]
[1743783954705,3.97731537,1786.0,1784.5,11.66353]
[1743783954909,3.97731537,1786.0,1785.1,5.60189]
[1743783954910,5.60123,1785.4,1785.1,5.60189]
[1743783955216,5.60123,1785.4,1785.0,5.60219]
[1743783955522,0.23294282,1785.3,1785.0,5.60222]
[1743783955719,0.23294282,1785.3,1785.0,11.20421]
[1743783956020,5.60005,1785.7,1785.1,5.60192]
[1743783956021,0.23263906,1785.2,1785.1,5.60192]
[1743783956219,0.23263906,1785.2,1785.1,6.41042]
[1743783956371,6.57649537,1786.0,1785.5,6.40912]
[1743783956566,5.59956,1785.9,1785.5,12.00964]
[1743783956803,5.8333672,1785.9,1785.5,6.40902]
[1743783957001,5.8333672,1785.9,1785.6,5.60019]
[1743783957002,5.8333372,1785.9,1785.6,5.60019]
[1743783957303,0.2338072,1785.9,1785.5,7.050022]
[1743783957826,0.2338072,1785.9,1785.6,5.6002]
[1743783958322,5.59981,1785.8,1785.5,1.449402]
[1743783958600,5.60068,1785.5,1785.2,5.60148]
[1743783958782,11.43450463,1785.7,1785.2,6.797604]
[1743783958982,0.23415284,1785.4,1785.2,6.797704]
[1743783959189,5.60045,1785.6,1785.2,12.399154]
[1743783959406,5.60045,1785.6,1785.2,6.797574]
[1743783959693,0.23393793,1785.5,1785.2,6.797564]
[1743783959907,0.23393793,1785.5,1785.3,0.6797564]
[1743783960206,0.23393793,1785.5,1785.3,6.2809364]
[1743783960709,6.04e-06,1785.5,1785.4,6.45228941]
[1743783960911,11.19681,1786.3,1785.9,5.59935]
[1743783961076,0.19583418,1786.2,1785.7,5.59987]
[1743783961280,5.59956,1785.9,1785.5,6.3958]
[1743783961475,6.01917892,1786.2,1785.5,0.7953]
[1743783961476,5.60016,1785.7,1785.5,0.7953]
[1743783961721,5.79558058,1785.6,1785.3,0.6797564]
[1743783961920,0.19502058,1785.6,1785.4,5.60097]
[1743783962106,5.60008,1785.7,1785.3,6.2809164]
[1743783962421,0.19517646,1785.6,1785.3,0.6797564]
[1743783962730,5.60043,1785.6,1785.3,5.60125]
[1743783962880,0.19508196,1785.5,1785.3,0.0560097]
[1743783963227,6.14934,1786.0,1785.7,5.60003]
[1743783963511,11.74728,1786.2,1785.8,5.59946]
[1743783963830,0.55,1786.2,1785.9,11.1987]
[1743783964118,6.14786,1786.4,1786.0,5.59889]
[1743783964327,11.74592,1786.4,1786.0,5.59889]
[1743783964512,5.59832,1786.3,1785.9,12.31848]
[1743783965024,0.55,1786.4,1785.9,1.11987]
[1743783965224,5.59945,1785.9,1785.6,5.60024]
[1743783965430,5.59985,1785.8,1785.4,5.60088]
[1743783965595,5.59985,1785.8,1785.5,5.60056]
[1743783965793,5.60048,1785.6,1785.3,0.8114]
[1743783966018,5.60015,1785.7,1785.4,5.60097]
[1743783966212,5.60079,1785.5,1785.3,1.452696]
[1743783966440,5.60132,1785.3,1784.8,6.41462]
[1743783966580,5.60198,1785.1,1784.8,0.812]
[1743783966779,5.60237,1785.0,1784.8,0.812]
[1743783966991,5.60198,1785.1,1784.7,5.603]
[1743783967195,5.60232,1785.0,1784.6,6.35862]
[1743783967420,5.60232,1785.0,1784.7,0.635862]
[1743783967849,5.60286,1784.8,1784.4,5.60402]
[1743783968006,5.60286,1784.8,1784.3,0.8273]
[1743783968007,0.55,1784.8,1784.3,0.8273]
[1743783968342,0.55,1784.8,1784.1,0.05]
[1743783968343,5.60475,1784.2,1784.1,0.05]
[1743783968690,5.79475449,1784.2,1784.1,0.05]
[1743783969331,11.13368394,1784.2,1784.1,0.05]
[1743783969536,11.68368394,1784.2,1784.1,0.05]